[Event "SRB-chT 1st League Women 2018"]
[Site "Zajecar"]
[Date "2018.08.31"]
[Round "1"]
[White "Maksimovic, Suzana"]
[Black "Ostojic, Katarina"]
[Result "1/2-1/2"]
[ECO "A43"]
[WhiteElo "2166"]
[BlackElo "2098"]
[Annotator "NA RC"]
[PlyCount "71"]
[EventDate "2018.08.31"]
[EventType "team-tourn"]
[EventCountry "SRB"]
[SourceTitle "playchess.com"]
[Source "ChessBase"]
[SourceQuality "1"]
[TimeControl "40/5400+30:1800+30"]

1. d4 {[%emt 0:00:00]} c5 {[%emt 0:00:00]} 2. d5 {[%emt 0:01:59]} Nf6 {[%emt 0:00:19]} 3. Nc3 {[%emt 0:00:19]} e6 {[%emt 0:01:51]} 4. e4 {[%emt 0:00:34]} d6 {[%emt 0:00:29]} 5. Bg5 {[%emt 0:14:27] A43: Schmid Benoni} (5. Bb5+ Bd7 6. a4 exd5 7. exd5 Be7 8. Nf3 O-O 9. h3 Re8 10. O-O Na6 11. Nd2 Nb4 12. Nc4 Rb8 13. Ne3 Bf8 14. Bc4 g6 15. Nb1 Bg7 16. c3 Na6 17. Na3 Nc7 18. Nb5 Nxb5 19. Bxb5 a6 20. Bxd7 Nxd7 21. a5 {½-½ (21) Campos Moreno,J (2413)-Munoz Pantoja,M (2497) Castell de Sant Ferran 2017}) 5... e5 {[%emt 0:08:41] LiveBook: 7 Games} 6. Be2 {[%emt 0:11:56]} Be7 {[%emt 0:02:36]} 7. h4 $146 {[%emt 0:01:02]} ({Predecessor:} 7. Be3 O-O 8. g4 Ne8 9. h4 Bxh4 10. Qd2 Be7 11. Nh3 Nd7 12. O-O-O {0-1 (46) Sahu,S (2227)-Tesik,C (2299) Budapest 2011}) 7... Na6 {[%emt 0:15:31]} 8. Nf3 {[%emt 0:17:23]} O-O {[%emt 0:03:24]} 9. Nd2 {[%emt 0:05:43]} Nc7 {[%emt 0:07:00]} 10. a4 {[%emt 0:03:11]} b6 {[%emt 0:06:50]} 11. Nc4 {[%emt 0:04:36]} Rb8 {[%emt 0:10:05]} 12. Bxf6 {[%emt 0:10:55]} Bxf6 {[%emt 0:00:26]} 13. Nb5 {[%emt 0:00:21]} Nxb5 {[%emt 0:13:21]} 14. axb5 {[%emt 0:00:06]} Ra8 {[%emt 0:01:16]} 15. Ra3 {[%emt 0:05:38]} a6 {[%emt 0:07:35]} 16. Ne3 $11 {[%emt 0:01:59]} Bd7 {[%emt 0:02:29]} 17. bxa6 {[%emt 0:05:18]} b5 {[%emt 0:00:15]} 18. Nf5 {[%emt 0:04:02]} Qb6 {[%emt 0:03:50]} 19. O-O {[%emt 0:03:57]} Rxa6 {[%emt 0:01:56]} 20. Rxa6 {[%emt 0:00:25]} Qxa6 {[%emt 0:00:03]} 21. Bg4 {[%emt 0:00:09]} Bxf5 {[%emt 0:00:53]} 22. Bxf5 {[%emt 0:00:20]} g6 {[%emt 0:00:45]} 23. Qg4 {[%emt 0:02:23]} Bg7 {[%emt 0:02:34]} 24. Bd7 {[%emt 0:00:15]} b4 {[%emt 0:01:38]} 25. b3 {[%emt 0:00:40]} Qa2 {[%emt 0:00:57]} 26. Qe2 {[%emt 0:00:26]} Ra8 {[%emt 0:00:32]} 27. Bb5 {[%emt 0:02:00]} Ra3 {[%emt 0:01:01]} 28. g3 {[%emt 0:00:33]} Qb2 {[%emt 0:00:16]} 29. Qd1 {[%emt 0:00:37]} Ra2 {[%emt 0:00:35]} 30. Bd3 {[%emt 0:00:14]} Ra3 {[%emt 0:01:56]} 31. Qg4 {[%emt 0:00:37]} Ra1 {[%emt 0:00:40]} 32. h5 {[%emt 0:01:14]} Rxf1+ {[%emt 0:00:37]} 33. Kxf1 {[%emt 0:00:02]} Qc1+ {[%emt 0:01:00]} 34. Kg2 {[%emt 0:00:06]} Qh6 {[%emt 0:01:15]} 35. hxg6 {[%emt 0:00:44]} hxg6 {[%emt 0:00:14]} 36. Qc8+ {[%emt 0:01:07]} 1/2-1/2

[Event "SRB-chT 1st League Women 2018"]
[Site "Zajecar"]
[Date "2018.08.31"]
[Round "1"]
[White "Kovacevic, Radmila"]
[Black "Petrovic, Danijela"]
[Result "0-1"]
[ECO "B10"]
[WhiteElo "2144"]
[BlackElo "1996"]
[Annotator "RC"]
[PlyCount "104"]
[EventDate "2018.08.31"]
[EventType "team-tourn"]
[EventCountry "SRB"]
[SourceTitle "playchess.com"]
[Source "ChessBase"]
[SourceQuality "1"]
[TimeControl "40/5400+30:1800+30"]

1. e4 {[%emt 0:00:00]} c6 {[%emt 0:00:00]} 2. d3 {[%emt 0:00:00]} d5 {[%emt 0:00:10]} 3. Qe2 {[%emt 0:00:21]} dxe4 {[%emt 0:01:07]} 4. dxe4 {[%emt 0:00:17]} e5 {[%emt 0:02:22]} 5. f4 {[%emt 0:03:32]} Nf6 {[%emt 0:03:40]} 6. Nc3 {[%emt 0:07:49]} Qb6 {[%emt 0:05:27]} 7. f5 {[%emt 0:07:28]} Bb4 {[%emt 0:05:09]} 8. Bd2 {[%emt 0:00:28]} O-O {[%emt 0:05:34]} 9. a3 {[%emt 0:08:48]} Bxc3 {[%emt 0:18:49]} 10. Bxc3 {[%emt 0:08:45]} Nbd7 {[%emt 0:00:25]} 11. g4 {[%emt 0:00:57]} Nc5 {[%emt 0:01:50]} 12. Bg2 {[%emt 0:00:31]} Na4 {[%emt 0:00:33]} 13. g5 {[%emt 0:22:03]} Nxc3 {[%emt 0:09:09]} 14. bxc3 {[%emt 0:00:19]} Nd7 {[%emt 0:00:45]} 15. Nh3 {[%emt 0:02:50]} Nc5 {[%emt 0:01:58]} 16. Nf2 {[%emt 0:02:37]} Qb2 {[%emt 0:03:40]} 17. O-O {[%emt 0:00:12]} Qxc3 {[%emt 0:01:34]} 18. Rad1 {[%emt 0:00:53]} b6 {[%emt 0:01:33]} 19. Qh5 {[%emt 0:06:29]} Ba6 {[%emt 0:04:25]} 20. Ng4 {[%emt 0:15:12]} Bxf1 {[%emt 0:04:03]} 21. Rxf1 {[%emt 0:00:39]} Rad8 {[%emt 0:01:43]} 22. Rf3 {[%emt 0:07:09]} Rd1+ {[%emt 0:07:12]} 23. Bf1 {[%emt 0:00:05]} Qd4+ {[%emt 0:01:00]} 24. Kg2 {[%emt 0:00:30]} Rd2+ {[%emt 0:00:33]} 25. Kh3 {[%emt 0:03:00]} Qxe4 {[%emt 0:05:32]} 26. Bg2 {[%emt 0:00:15]} Qxc2 {[%emt 0:01:10]} 27. f6 {[%emt 0:01:12]} Qg6 {[%emt 0:01:26]} 28. Qh4 {[%emt 0:00:30]} Ne4 {[%emt 0:01:18]} 29. Qe1 {[%emt 0:01:01]} Qh5+ {[%emt 0:00:43]} 30. Qh4 {[%emt 0:00:04]} Nxg5+ {[%emt 0:00:15]} 31. Kg3 {[%emt 0:00:08]} Qxh4+ {[%emt 0:00:12]} 32. Kxh4 {[%emt 0:00:05]} Nxf3+ {[%emt 0:00:07]} 33. Bxf3 {[%emt 0:00:03]} Rfd8 {[%emt 0:00:55]} 34. Bxc6 {[%emt 0:00:17]} gxf6 {[%emt 0:00:31]} 35. a4 {[%emt 0:00:44]} Kg7 {[%emt 0:00:21]} 36. Kh5 {[%emt 0:01:02]} a6 {[%emt 0:00:21]} 37. h4 {[%emt 0:00:18]} R2d4 {[%emt 0:00:28]} 38. Ne3 {[%emt 0:01:41]} Rf4 {[%emt 0:00:20]} 39. Ng2 {[%emt 0:00:18]} Rc4 {[%emt 0:00:13]} 40. Bb7 {[%emt 0:00:00]} Rxa4 {[%emt 0:00:00]} 41. Ne3 {[%emt 0:01:13]} b5 {[%emt 0:01:54]} 42. Bc6 {[%emt 0:01:56]} Ra3 {[%emt 0:00:27]} 43. Nf5+ {[%emt 0:00:11]} Kf8 {[%emt 0:00:14]} 44. Kh6 {[%emt 0:00:15]} b4 {[%emt 0:00:14]} 45. Kxh7 {[%emt 0:00:15]} b3 {[%emt 0:00:12]} 46. h5 {[%emt 0:00:42]} b2 {[%emt 0:00:27]} 47. Be4 {[%emt 0:00:04]} Rad3 {[%emt 0:00:30]} 48. h6 {[%emt 0:00:41]} b1=Q {[%emt 0:00:52]} 49. Kh8 {[%emt 0:00:08]} Qg1 {[%emt 0:00:52]} 50. h7 {[%emt 0:00:10]} Rg3 {[%emt 0:02:09]} 51. Bg2 {[%emt 0:02:01]} Rxg2 {[%emt 0:00:44]} 52. Ne7 {[%emt 0:00:19]} Kxe7# {[%emt 0:00:51]} 0-1

[Event "SRB-chT 1st League Women 2018"]
[Site "Zajecar"]
[Date "2018.08.31"]
[Round "1"]
[White "Rakic, Teodora"]
[Black "Arsovic, Jelena"]
[Result "1/2-1/2"]
[ECO "D94"]
[WhiteElo "2052"]
[BlackElo "2034"]
[Annotator "NA RC"]
[PlyCount "93"]
[EventDate "2018.08.31"]
[EventType "team-tourn"]
[EventCountry "SRB"]
[SourceTitle "playchess.com"]
[Source "ChessBase"]
[SourceQuality "1"]
[TimeControl "40/5400+30:1800+30"]

1. d4 {[%emt 0:00:00]} d5 {[%emt 0:00:00]} 2. c4 {[%emt 0:00:00]} dxc4 {[%emt 0:00:00]} 3. Nf3 {[%emt 0:00:00]} Nf6 {[%emt 0:00:14]} 4. e3 {[%emt 0:00:38]} g6 {[%emt 0:01:13]} 5. Bxc4 {[%emt 0:00:45]} Bg7 {[%emt 0:00:14]} 6. Nc3 {[%emt 0:01:06]} O-O {[%emt 0:01:42]} 7. O-O {[%emt 0:00:54]} c5 {[%emt 0:02:06]} 8. dxc5 {[%emt 0:20:48]} Qa5 {[%emt 0:03:10] D94: Grünfeldindisch (Geschlossenes System)} 9. Nb5 {[%emt 0:13:05] LiveBook: 5 Games} Ne4 {[%emt 0:06:59]} 10. Qd5 {[%emt 0:10:53]} a6 {[%emt 0:18:19]} 11. Qxe4 {[%emt 0:06:07]} axb5 {[%emt 0:00:04]} 12. Bd5 {[%emt 0:01:55]} e6 {[%emt 0:18:45]} 13. Bb3 {[%emt 0:03:32]} ({Reject} 13. Bxb7 f5 $17) 13... Nd7 $146 {[%emt 0:03:29]} ({Vorgänger:} 13... Na6 14. Bd2 Nxc5 15. Qc2 Qb6 16. Bb4 Nxb3 17. axb3 Rxa1 18. Rxa1 {½-½ (53) Murshed,N (2520)-Ramesh,R (2330) Madras 1995}) 14. Qc2 {[%emt 0:10:03]} Qc7 {[%emt 0:07:13]} 15. Bd2 {[%emt 0:02:33]} Qxc5 {[%emt 0:03:10]} 16. Rac1 {[%emt 0:06:54]} Qxc2 {[%emt 0:03:33]} 17. Rxc2 {[%emt 0:00:08]} Nb6 {[%emt 0:00:40]} 18. Bc3 {[%emt 0:02:42]} Bd7 {[%emt 0:03:22]} (18... Bxc3 $11 19. Rxc3 Bd7) 19. Bxg7 {[%emt 0:00:41]} Kxg7 {[%emt 0:00:05]} 20. Ne5 {[%emt 0:01:10]} Rfc8 {[%emt 0:03:34]} 21. Nxd7 {[%emt 0:01:34]} Nxd7 {[%emt 0:01:57]} 22. Rfc1 {[%emt 0:00:19]} Rxc2 {[%emt 0:01:02]} 23. Rxc2 {[%emt 0:00:10]} Nb6 {[%emt 0:00:52]} 24. Kf1 {[%emt 0:04:33]} Rc8 {[%emt 0:02:56]} 25. Rxc8 {[%emt 0:00:35]} Nxc8 {[%emt 0:00:01]} 26. Ke2 {[%emt 0:00:58]} Kf6 {[%emt 0:00:35]} 27. Kd3 {[%emt 0:00:50]} Ke5 {[%emt 0:01:04]} 28. f4+ {[%emt 0:01:46]} Kd6 {[%emt 0:00:34]} 29. e4 {[%emt 0:00:49]} f6 {[%emt 0:03:33]} 30. Kd4 {[%emt 0:03:00]} e5+ {[%emt 0:00:34]} 31. fxe5+ {[%emt 0:00:04]} fxe5+ {[%emt 0:00:06]} 32. Kd3 {[%emt 0:03:16]} Ne7 {[%emt 0:01:02]} 33. a3 {[%emt 0:02:25]} h6 {[%emt 0:04:17]} 34. Bf7 {[%emt 0:02:03]} Kd7 {[%emt 0:02:13]} 35. g3 {[%emt 0:00:31]} g5 {[%emt 0:00:51]} 36. Ke3 {[%emt 0:00:34]} Nc8 {[%emt 0:02:20]} 37. Bd5 {[%emt 0:00:20]} Nd6 {[%emt 0:00:52]} 38. Kd3 {[%emt 0:00:39]} Kc7 {[%emt 0:01:28]} 39. b3 {[%emt 0:00:17]} Ne8 {[%emt 0:00:59]} 40. Be6 {[%emt 0:00:00]} Nf6 {[%emt 0:00:00]} 41. Bh3 {[%emt 0:09:31]} Kd6 {[%emt 0:04:21]} 42. Bf1 {[%emt 0:03:39]} Kc5 {[%emt 0:02:02]} 43. Be2 {[%emt 0:01:40]} Kc6 {[%emt 0:08:43]} 44. Bf3 {[%emt 0:01:09]} Kc5 {[%emt 0:00:30]} 45. Kc3 {[%emt 0:01:10]} b6 {[%emt 0:06:15]} 46. Bg2 {[%emt 0:04:13]} Ng4 $11 {[%emt 0:01:42]} 47. h4 {[%emt 0:08:51] Kc4+} 1/2-1/2

[Event "SRB-chT 1st League Women 2018"]
[Site "Zajecar"]
[Date "2018.09.02"]
[Round "3"]
[White "Eric, Jovana"]
[Black "Chelushkina, Irina"]
[Result "0-1"]
[ECO "C15"]
[WhiteElo "2261"]
[BlackElo "2280"]
[Annotator "NA"]
[PlyCount "40"]
[EventDate "2018.08.31"]
[EventType "team-tourn"]
[EventCountry "SRB"]
[SourceTitle "playchess.com"]
[Source "ChessBase"]
[SourceQuality "1"]
[TimeControl "40/5400+30:1800+30"]

{[%evp 18,40,25,32767,32767,0,32767,32767,32767,32767,32767,32767,-99,-113,-89,-118,-107,-324,-383,-327,-409,-391,32767,-547,-540]} 1. e4 {[%emt 0:00:00]} e6 {[%emt 0:00:00]} 2. d4 {[%emt 0:00:00]} d5 {[%emt 0:00:11]} 3. Nc3 {[%emt 0:00:06]} Bb4 {[%emt 0:00:40]} 4. Nge2 {[%emt 0:02:57]} dxe4 {[%emt 0:05:05]} 5. a3 {[%emt 0:00:30]} Be7 {[%emt 0:02:11]} 6. Nxe4 {[%emt 0:00:21]} f5 {[%emt 0:04:12] C15: French: 3 Nc3 Bb4: Unusual White 4th moves} (6... Nf6 7. Nxf6+ Bxf6 8. Be3 O-O 9. Qd2 b6 10. O-O-O Bb7 11. h4 Nd7 12. Nf4 Be7 13. h5 Nf6 14. f3 Qc8 15. Qf2 Rd8 {0-1 (33) Jobava,B (2703)-Ivanchuk,V (2757) Leuven 2017}) 7. N4c3 {[%emt 0:04:32]} Nf6 {[%emt 0:01:06]} 8. Nf4 {[%emt 0:05:40]} Nc6 {[%emt 0:08:59]} 9. Bb5 $146 {[%emt 0:04:24]} ({Predecessor:} 9. Be3 g5 10. Nh5 f4 11. Nxf6+ Bxf6 12. Qh5+ Ke7 13. d5 fxe3 14. O-O-O {0-1 (60) Andreeva,E (1978)-Dogodkina,J (2070) Ivanovo 2011}) 9... O-O {[%emt 0:00:16]} 10. Bxc6 {[%emt 0:04:27]} bxc6 {[%emt 0:00:04]} 11. O-O {[%emt 0:00:32]} c5 {[%emt 0:03:41]} 12. Qf3 {[%emt 0:17:57]} Rb8 {[%emt 0:01:07]} 13. dxc5 {[%emt 0:01:16]} Bxc5 {[%emt 0:00:28]} 14. Be3 {[%emt 0:03:46] [#]} Bd6 $1 {[%emt 0:03:51]} 15. Bxa7 {[%emt 0:28:44]} Rxb2 {[%emt 0:00:46]} 16. Nd3 {[%emt 0:01:02]} Rxc2 {[%emt 0:14:17]} 17. Nb4 $2 {[%emt 0:06:56] [#]} (17. Nb5 $17 {might work better.}) 17... Bb7 $1 {[%emt 0:04:31]} 18. Qh3 {[%emt 0:04:47] [#]} Rxc3 $19 {[%emt 0:04:53]} 19. Qxc3 {[%emt 0:00:07]} Qa8 {[%emt 0:00:02]} 20. Bc5 {[%emt 0:02:36]} (20. Bd4 {was called for.} Bxg2 21. Rfe1) 20... Ne4 0-1

[Event "SRB-chT 1st League Women 2018"]
[Site "Zajecar"]
[Date "2018.09.02"]
[Round "3"]
[White "Benderac, Ana"]
[Black "Blagojevic, Tijana"]
[Result "1-0"]
[ECO "D45"]
[WhiteElo "2239"]
[BlackElo "2232"]
[Annotator "ChessBase"]
[PlyCount "151"]
[EventDate "2018.08.31"]
[EventType "team-tourn"]
[EventCountry "SRB"]
[SourceTitle "playchess.com"]
[Source "ChessBase"]
[SourceQuality "1"]
[TimeControl "40/5400+30:1800+30"]

1. d4 {[%emt 0:00:00]} d5 {[%emt 0:00:00]} 2. c4 {[%emt 0:00:00]} c6 {[%emt 0:00:00]} 3. Nc3 {[%emt 0:00:14]} Nf6 {[%emt 0:00:00]} 4. Nf3 {[%emt 0:01:08]} e6 {[%emt 0:00:05]} 5. e3 {[%emt 0:01:24]} Nbd7 {[%emt 0:00:29]} 6. Qc2 {[%emt 0:01:30]} Bd6 {[%emt 0:03:39]} 7. Bd3 {[%emt 0:06:02]} dxc4 {[%emt 0:01:17]} 8. Bxc4 {[%emt 0:00:08]} b5 {[%emt 0:00:51]} 9. Be2 {[%emt 0:01:22]} O-O {[%emt 0:03:41]} 10. O-O {[%emt 0:00:22]} Bb7 {[%emt 0:03:46]} 11. Rd1 {[%emt 0:00:39]} Qc7 {[%emt 0:04:32]} 12. Bd2 {[%emt 0:03:20]} b4 {[%emt 0:07:56]} 13. Ne4 {[%emt 0:16:07]} Nxe4 14. Qxe4 c5 {[%emt 0:12:00]} 15. Qh4 {[%emt 0:01:15]} c4 {[%emt 0:10:19]} 16. Rac1 {[%emt 0:04:35]} Nb6 {[%emt 0:03:06]} 17. Ne5 {[%emt 0:15:45]} Bxe5 {[%emt 0:04:05]} 18. dxe5 {[%emt 0:01:35]} a5 {[%emt 0:01:18]} 19. a3 {[%emt 0:12:33]} bxa3 {[%emt 0:11:24]} 20. bxa3 {[%emt 0:13:20]} Rfc8 {[%emt 0:07:55]} 21. Bc3 {[%emt 0:02:09]} Nd5 {[%emt 0:02:16]} 22. Bd4 {[%emt 0:01:35]} Ba6 {[%emt 0:00:10]} 23. Bf3 {[%emt 0:02:02]} Rab8 {[%emt 0:01:12]} 24. Be4 {[%emt 0:01:37]} h6 {[%emt 0:00:13]} 25. Bxd5 {[%emt 0:01:17]} exd5 {[%emt 0:00:04]} 26. Bc3 {[%emt 0:00:29]} Rb5 {[%emt 0:04:03]} 27. a4 {[%emt 0:01:07]} Rb3 {[%emt 0:01:15]} 28. Rxd5 {[%emt 0:02:40]} Rcb8 {[%emt 0:00:51]} 29. Qd4 {[%emt 0:04:11]} Rb1 {[%emt 0:01:00]} 30. Rd1 {[%emt 0:00:30]} Rxd1+ {[%emt 0:08:51]} 31. Qxd1 {[%emt 0:00:01]} Rb3 {[%emt 0:00:20]} 32. Rd8+ {[%emt 0:04:02]} Kh7 {[%emt 0:00:04]} 33. Qc2+ {[%emt 0:00:03]} g6 {[%emt 0:00:08]} 34. Rd1 {[%emt 0:00:20]} Bc8 {[%emt 0:00:58]} 35. e6 {[%emt 0:02:16]} Bxe6 {[%emt 0:00:06]} 36. Qd2 {[%emt 0:00:47]} Qd7 {[%emt 0:01:14]} 37. Qe1 {[%emt 0:00:33]} Qb7 {[%emt 0:04:02]} 38. f3 {[%emt 0:00:39]} Qe7 {[%emt 0:03:17]} 39. Qd2 {[%emt 0:01:03]} Qc5 {[%emt 0:00:42]} 40. Kf2 {[%emt 0:00:29]} Qa3 {[%emt 0:01:19]} 41. Rc1 {[%emt 0:00:17]} Qc5 {[%emt 0:01:23]} 42. Bxa5 {[%emt 0:11:09]} Qd5 {[%emt 0:06:57]} 43. Qxd5 {[%emt 0:00:47]} Bxd5 {[%emt 0:00:44]} 44. Bc3 {[%emt 0:04:07]} f5 {[%emt 0:06:39]} 45. a5 {[%emt 0:00:24]} Kg8 {[%emt 0:00:36]} 46. Bd4 {[%emt 0:05:24]} Ra3 {[%emt 0:00:36]} 47. Ra1 {[%emt 0:01:52]} Rxa1 {[%emt 0:00:13]} 48. Bxa1 {[%emt 0:00:01]} Bb7 {[%emt 0:02:54]} 49. Ke2 {[%emt 0:00:15]} Kf7 {[%emt 0:00:33]} 50. Kd2 {[%emt 0:00:03]} Ke6 {[%emt 0:00:20]} 51. Kc3 {[%emt 0:00:05]} Kd5 {[%emt 0:00:09]} 52. Kb4 {[%emt 0:00:15]} Ba6 {[%emt 0:00:20]} 53. Bg7 {[%emt 0:04:58]} h5 {[%emt 0:00:53]} 54. h4 {[%emt 0:01:08]} c3 {[%emt 0:06:33]} 55. Kxc3 {[%emt 0:01:31]} Bf1 {[%emt 0:00:03]} 56. Kd2 {[%emt 0:02:25]} Bxg2 {[%emt 0:00:43]} 57. Ke2 {[%emt 0:00:15]} Kc6 {[%emt 0:01:43]} 58. Bc3 {[%emt 0:01:20]} Kd5 {[%emt 0:00:38]} 59. a6 {[%emt 0:00:38]} Kc6 {[%emt 0:00:21]} 60. Bd4 {[%emt 0:00:36]} Bh3 {[%emt 0:05:38]} 61. a7 {[%emt 0:00:46]} Kb7 {[%emt 0:00:12]} 62. Bc5 {[%emt 0:02:22]} Ka8 {[%emt 0:02:57]} 63. Kd3 {[%emt 0:00:30]} Bg2 {[%emt 0:00:19]} 64. Ke2 {[%emt 0:00:36]} Bh3 {[%emt 0:00:06]} 65. e4 {[%emt 0:00:15]} fxe4 {[%emt 0:00:24]} 66. fxe4 {[%emt 0:00:04]} Bg2 {[%emt 0:00:08]} 67. Ke3 {[%emt 0:00:11]} Kb7 {[%emt 0:00:15]} 68. Kf4 {[%emt 0:00:24]} Bh1 {[%emt 0:00:24]} 69. Bd4 {[%emt 0:00:53]} Bg2 {[%emt 0:00:11]} 70. e5 {[%emt 0:00:07]} Kc7 {[%emt 0:00:22]} 71. Kg5 {[%emt 0:00:06]} Be4 {[%emt 0:00:57]} 72. Kf6 {[%emt 0:00:21]} Kd7 {[%emt 0:01:17]} 73. e6+ {[%emt 0:00:37]} Ke8 {[%emt 0:00:18]} 74. Bc5 {[%emt 0:00:06]} Bd5 {[%emt 0:00:18]} 75. Kxg6 {[%emt 0:00:16]} Bf3 {[%emt 0:00:08]} 76. Kf6 {[%emt 0:00:49]} 1-0

[Event "SRB-chT 1st League Women 2018"]
[Site "Zajecar"]
[Date "2018.09.02"]
[Round "3"]
[White "Zarkovic, Mila"]
[Black "Matkovic, Simana"]
[Result "1-0"]
[ECO "B92"]
[WhiteElo "2185"]
[BlackElo "1937"]
[Annotator "NA"]
[PlyCount "79"]
[EventDate "2018.08.31"]
[EventType "team-tourn"]
[EventCountry "SRB"]
[SourceTitle "playchess.com"]
[Source "ChessBase"]
[SourceQuality "1"]
[TimeControl "40/5400+30:1800+30"]

1. e4 {[%emt 0:00:00]} c5 {[%emt 0:00:00]} 2. Nf3 {[%emt 0:00:00]} d6 {[%emt 0:00:00]} 3. d4 {[%emt 0:00:00]} cxd4 {[%emt 0:00:00]} 4. Nxd4 {[%emt 0:00:00]} Nf6 {[%emt 0:00:06]} 5. Nc3 {[%emt 0:00:00]} a6 {[%emt 0:00:10]} 6. Be2 {[%emt 0:00:00]} e5 {[%emt 0:00:39]} 7. Nb3 {[%emt 0:00:09]} Be6 {[%emt 0:00:52]} 8. Bf3 {[%emt 0:01:00] B92: Sicilian Najdorf: 6 Be2} Nbd7 {[%emt 0:05:27]} 9. O-O {[%emt 0:00:49]} Be7 {[%emt 0:00:28]} 10. Re1 {[%emt 0:00:25]} Rc8 {[%emt 0:02:34]} 11. a4 {[%emt 0:02:54]} Nb6 {[%emt 0:11:56]} 12. Nd2 {[%emt 0:11:58]} O-O {[%emt 0:02:26]} 13. a5 {[%emt 0:21:03]} Nc4 {[%emt 0:03:22]} 14. Nxc4 {[%emt 0:01:36]} Rxc4 {[%emt 0:02:59] [#]} 15. Bd2 $146 {[%emt 0:08:31]} ({Predecessor:} 15. Be3 Qd7 16. h3 Rfc8 17. Na4 Rxa4 {0-1 (30) Vaibhav,S (2560)-Lu,S (2628) Ashkhabad 2017}) 15... Qc7 {[%emt 0:03:58]} 16. Re3 {[%emt 0:11:01]} Rc8 {[%emt 0:04:08]} 17. b3 {[%emt 0:11:53]} Rc6 {[%emt 0:10:36]} 18. Na4 {[%emt 0:01:19]} Rxc2 {[%emt 0:06:39]} 19. Nb6 {[%emt 0:00:05]} Rd8 {[%emt 0:02:14] [#]} 20. Nc4 $1 {[%emt 0:00:03]} Rxc4 {[%emt 0:02:51]} 21. bxc4 {[%emt 0:00:05]} Rc8 {[%emt 0:04:34]} 22. Rc3 {[%emt 0:05:33]} Qd8 {[%emt 0:04:37]} 23. Qb3 {[%emt 0:01:16]} Rc7 {[%emt 0:01:08]} 24. Be3 {[%emt 0:01:12]} Qc8 {[%emt 0:03:29]} 25. Rac1 {[%emt 0:00:24]} Nd7 {[%emt 0:02:15]} 26. h3 {[%emt 0:02:12]} Nc5 $16 {[%emt 0:02:17]} 27. Qd1 {[%emt 0:00:11]} Qd8 {[%emt 0:01:36]} 28. Rb1 {[%emt 0:04:07]} Bc8 {[%emt 0:04:42]} 29. Rb6 {[%emt 0:06:46]} Qe8 {[%emt 0:07:01]} 30. Bxc5 {[%emt 0:03:39]} Rxc5 {[%emt 0:04:41]} 31. Bg4 {[%emt 0:00:03]} Bd8 {[%emt 0:01:42]} 32. Rxd6 {[%emt 0:00:55]} Be7 {[%emt 0:04:05]} 33. Rd5 {[%emt 0:00:11]} Be6 {[%emt 0:00:57]} 34. Bxe6 {[%emt 0:01:32]} fxe6 {[%emt 0:00:01]} 35. Rd7 {[%emt 0:02:45]} Rxa5 {[%emt 0:00:41]} 36. Rcd3 {[%emt 0:00:04]} Kf7 {[%emt 0:00:39]} 37. Rxb7 {[%emt 0:00:36]} Kg6 {[%emt 0:01:31]} 38. Qg4+ {[%emt 0:01:03]} Bg5 {[%emt 0:01:05]} 39. h4 {[%emt 0:00:49]} Ra1+ {[%emt 0:00:23]} 40. Kh2 {[%emt 0:00:00]} 1-0